Cogmind - Beta 14 @@@ ROGUE MODE // 2024.11.01 @ 12:25:16 Player: NextToZero Result: Destroyed by S4-K3J(R) with Subdweller Machine Gun Performance ------------- Evolutions (0) 0 Regions Visited (3) 600 Robots Destroyed (10) 50 Value Destroyed (150) 150 Prototype IDs (2) 40 Alien Tech Used (0) 0 Bonus (0) 0 TOTAL SCORE: 840 Bonus ------- None Cogmind --------- Core Integrity 0/250 Matter 290/300 Energy 83/100 System Corruption 0% Temperature Cool (0) Movement Rolling (100) Location -10/Subcaves Parts ------- > --- POWER (1) -------- (None) > --- PROPULSION (2) --- Compact Wheel Compact Wheel > --- UTILITY (2) ------ Large Storage Unit Improved Terrain Scanner > --- WEAPON (2) ------- (None) > --- INVENTORY (15) --- Ion Engine Ion Engine Wheel Medium Battery (150) Medium Battery (150) Medium Battery (150) Structural Scanner ECM Suite Scrap Shield Peak State ------------ > --- POWER ------------ Light Ion Engine > --- PROPULSION ------- Wheel Wheel > --- UTILITY ---------- Large Storage Unit Improved Terrain Scanner > --- WEAPON ----------- Assault Rifle Light Assault Rifle > --- INVENTORY -------- Ion Engine Light Ion Engine Wheel Wheel Compact Wheel Compact Wheel Compact Wheel Medium Battery Medium Battery ECM Suite [Rating: 10] Favorites ----------- Power Ion Engine Engine Ion Engine Propulsion Wheel Wheel Wheel Utility Improved Terrain Scanner Device Improved Terrain Scanner Storage Large Storage Unit Weapon Assault Rifle Energy Gun Medium Laser Ballistic Gun Assault Rifle Special Weapon Mining Laser Build | -11 -10 -10 -10 ------- Run | Yrd Mat Min Sub Slots Evolved . | . . . . Power . | . . . . Propulsion . | . . . . Utility . | . . . . Weapon . | . . . . Parts Attached 15 | 8 3 1 3 Power 2 | 1 1 . . Engine 2 | 1 1 . . Core . | . . . . Reactor . | . . . . Propulsion 6 | 3 . . 3 Treads . | . . . . Leg . | . . . . Wheel 6 | 3 . . 3 Hover . | . . . . Flight . | . . . . Utility 3 | 2 1 . . Device 1 | 1 . . . Storage 2 | 1 1 . . Processor . | . . . . Hackware . | . . . . Protection . | . . . . Artifact . | . . . . Weapon 4 | 2 1 1 . Energy Gun 1 | 1 . . . Energy Cannon . | . . . . Ballistic Gun 2 | 1 1 . . Ballistic Cannon . | . . . . Launcher . | . . . . Special Weapon 1 | . . 1 . Impact Weapon . | . . . . Slashing Weapon . | . . . . Piercing Weapon . | . . . . Special Melee Weapon . | . . . . Unidentified Prototypes . | . . . . Parts Lost 5 | . . . 5 Power 1 | . . . 1 Propulsion 2 | . . . 2 Utility . | . . . . Weapon 2 | . . . 2 Highest Loss Streak 5 | . . . 5 To Critical Strikes . | . . . . Average Slot Usage (%) 98 | . 100 100 93 Engine 13 | . 14 14 12 Wheel 27 | . 28 28 25 Device 14 | . 14 14 14 Storage 14 | . 14 14 14 Ballistic Gun 23 | . 25 27 12 Special Weapon 2 | . . . 12 Peak Build Rating 10 | 9 10 10 10 Average Rating 9 | 5 9 10 9 On Entrance 7 | . 9 10 10 Naked Turns . | . . . . Heaviest Build 29 | 13 29 29 29 Greatest Support 32 | 26 20 20 32 Greatest Overweight (x) 2 | . 1 1 2 Average Overweight (x) . | . . 1 1 Largest Inventory Capacity 15 | 8 15 15 15 Average Capacity 12 | 7 8 15 15 Most Carried 15 | 6 13 15 15 Average Carried 10 | 3 7 14 13 Final Capacity 15 | 8 15 15 15 Final Carried 15 | 6 13 15 10 Class Distribution -------------------- 100% | Mutant Dominant Class ---------------- Mutant | -10/Materials Mutant | -10/Mines Mutant | -10/Subcaves Resources | -11 -10 -10 -10 ----------- Run | Yrd Mat Min Sub Matter Collected 420 | 304 50 56 10 Remotely . | . . . . Salvage Created 342 | 110 176 56 . Parts 24 | 7 7 10 . Haulers Intercepted . | . . . . Recyclers Shooed 2 | 1 1 . . Parts Field Recycled . | . . . . Retrieved Matter . | . . . . Parts Self-Destructed 4 | . . . 4 Prevented . | . . . . Kills | -11 -10 -10 -10 ------- Run | Yrd Mat Min Sub Combat Hostiles Destroyed 4 | . 3 1 . Guns 4 | . 3 1 . Classes Destroyed 5 | 2 1 2 . Builder 1 | . . 1 . Tunneler 3 | 2 . 1 . Recycler 2 | 1 1 . . Swarmer 1 | . . 1 . Grunt 3 | . 3 . . Best Kill Streak 4 | 3 4 1 . Combat Bots Only 3 | . 3 1 . Max Kills in Single Turn 1 | 1 1 1 . Gunslinging . | . . . . Exploded . | . . . . Melee . | . . . . Uniques/NPCs Destroyed . | . . . . Combat | -11 -10 -10 -10 -------- Run | Yrd Mat Min Sub Hostile Shots Fired 40 | . 12 6 22 Missed 9 | . 4 2 3 Damage Taken 598 | . 93 29 476 Core 263 | . 10 8 245 Absorbed by Shields . | . . . . Core Remaining (%) 100 | 100 . . . Volleys Fired 29 | 8 12 9 . Largest 2 | 2 2 2 . Hottest 100 | 70 40 100 . Shots Fired 56 | 16 24 16 . Gun 54 | 16 24 14 . Cannon . | . . . . Launcher . | . . . . Special 2 | . . 2 . Kinetic 46 | 8 24 14 . Thermal 10 | 8 . 2 . Explosive . | . . . . Electromagnetic . | . . . . Robot Hit Streak 9 | 7 9 5 . Robot Miss Streak 6 | 6 4 1 . Penetration Max . | . . . . Secondary Targets . | . . . . Shots Hit Robots 31 | 8 16 7 . Core Hits 15 | 4 8 3 . Critical Kills . | . . . . Critical Parts Destroyed . | . . . . Critical Strikes 2 | 2 . . . Burn 2 | 2 . . . Melee Attacks . | . . . . Impact . | . . . . Slashing . | . . . . Piercing . | . . . . Sneak Attacks . | . . . . Combat Hostiles . | . . . . Follow-up Attacks . | . . . . Damage Inflicted 352 | 109 168 75 . Guns 352 | 109 168 75 . Cannons . | . . . . Explosions . | . . . . Melee . | . . . . Ramming . | . . . . Kinetic 290 | 47 168 75 . Thermal 62 | 62 . . . Explosive . | . . . . Electromagnetic . | . . . . Impact . | . . . . Slashing . | . . . . Piercing . | . . . . Highest Corruption . | . . . . Average Corruption . | . . . . Corruption Purged . | . . . . Corruption Blocked . | . . . . Overload Shots . | . . . . Overflow Damage . | . . . . Projectiles . | . . . . Explosions . | . . . . Melee . | . . . . Knockbacks . | . . . . Impact . | . . . . Kinetic . | . . . . Secondary . | . . . . Self-Inflicted Damage . | . . . . Shots . | . . . . Rammed . | . . . . Targets Rammed . | . . . . Kicked . | . . . . Crushed . | . . . . Highest Temperature 40 | 18 12 40 . Average Temperature 11 | 9 6 22 . Received Heat Transfer 138 | . 51 . 87 Siege Activations . | . . . . Robots Corrupted . | . . . . Combat Hostiles . | . . . . Parts Fried . | . . . . Impact Corruptions . | . . . . Robots Melted . | . . . . Combat Hostiles . | . . . . Parts Melted 1 | 1 . . . Heat Transferred 333 | 333 . . . Parts Sabotaged . | . . . . Parts Stolen . | . . . . Parts Stripped . | . . . . Power Chain Reactions . | . . . . Alert | -11 -10 -10 -10 ------- Run | Yrd Mat Min Sub Peak Influence 108 | 15 108 103 . Initial 42 | . 9 42 . Average 52 | 4 66 61 . Maximum Alert Level . | . . . . Low Security (%) 100 | 100 100 100 . Level 1 . | . . . . Level 2 . | . . . . Level 3 . | . . . . Level 4 . | . . . . Level 5 . | . . . . High Security . | . . . . Max Security . | . . . . Squads Dispatched 1 | . 1 . . Investigation 1 | . 1 . . Extermination . | . . . . Reinforcement . | . . . . Assault . | . . . . Garrison . | . . . . Intercept . | . . . . Searches Triggered . | . . . . Construction Impeded . | . . . . Haulers Reinforced . | . . . . Active Scanning Responses . | . . . . Cargo Convoy Interrupts . | . . . . Stealth | -11 -10 -10 -10 --------- Run | Yrd Mat Min Sub Distress Signals 1 | . 1 . . Communications Jammed . | . . . . Distress Signals . | . . . . Times Spotted 22 | . 10 3 9 Peak Tracking Total 6 | . 6 3 6 Tactical Retreats 1 | . . 1 . Traps | -11 -10 -10 -10 ------- Run | Yrd Mat Min Sub Traps Triggered . | . . . . Indirectly . | . . . . Trap Hack Attempts . | . . . . Triggered . | . . . . Disarmed . | . . . . Reprogrammed . | . . . . Reused . | . . . . Traps Extracted . | . . . . Installed 3 | . . . 3 Triggered . | . . . . Most Traps Carried 3 | . . 3 3 Machines | -11 -10 -10 -10 ---------- Run | Yrd Mat Min Sub Machines Disabled . | . . . . Max in Single Turn . | . . . . Machines Repaired . | . . . . Machines Dismantled . | . . . . Machines Sabotaged . | . . . . Overloaded Fab Kills . | . . . . Hacking | -11 -10 -10 -10 --------- Run | Yrd Mat Min Sub Machines Accessed 6 | . 5 1 . Terminals 6 | . 5 1 . Fabricators . | . . . . Repair Stations . | . . . . Recycling Units . | . . . . Scanalyzers . | . . . . Garrison Access . | . . . . Total Hacks 17 | . 14 3 . Successful 7 | . 6 1 . Failed 10 | . 8 2 . Catastrophic . | . . . . Database Lockouts . | . . . . Manual . | . . . . Terminals 17 | . 14 3 . Fabricators . | . . . . Repair Stations . | . . . . Recycling Units . | . . . . Scanalyzers . | . . . . Garrison Access . | . . . . Terminal Hacks 7 | . 6 1 . Prototype ID Bank 1 | . 1 . . Emergency Access Points 2 | . 2 . . Locate Traps 1 | . 1 . . Hauler Manifests 1 | . 1 . . Registered Components 1 | . 1 . . Zone Layout 1 | . . 1 . Fabricator Hacks . | . . . . Repair Station Hacks . | . . . . Recycling Unit Hacks . | . . . . Scanalyzer . | . . . . Garrison Access Hacks . | . . . . Unauthorized Hacks . | . . . . Terminals . | . . . . Fabricators . | . . . . Repair Stations . | . . . . Recycling Units . | . . . . Scanalyzers . | . . . . Garrison Access . | . . . . Data Cores Recovered . | . . . . Used . | . . . . Hacking Detections 5 | . 4 1 . Full Trace Events 2 | . 2 . . Feedback Events . | . . . . Feedback Blocked . | . . . . Robot Schematics Acquired . | . . . . Robots Built . | . . . . Authchips . | . . . . Time . | . . . . Total Robot Build Rating . | . . . . Part Schematics Acquired . | . . . . Parts Built . | . . . . Authchips . | . . . . Time . | . . . . Total Part Build Rating . | . . . . Parts Repaired . | . . . . Time . | . . . . Parts Recycled . | . . . . Recycled Matter . | . . . . Retrieved Matter . | . . . . Retrieved Components . | . . . . Parts Scanalyzed . | . . . . Part Schematics Acquired . | . . . . Parts Damaged . | . . . . Bothacking | -11 -10 -10 -10 ------------ Run | Yrd Mat Min Sub Used RIF Installer . | . . . . Robots Hacked . | . . . . Non-combat . | . . . . Combat . | . . . . Robot Hacks Applied . | . . . . Relay Couplers Released . | . . . . Fabnet Peak Effective % . | . . . . Robots Rewired . | . . . . Allies Hacked . | . . . . Hacks Repelled . | . . . . Allies | -11 -10 -10 -10 -------- Run | Yrd Mat Min Sub Total Allies . | . . . . Largest Group . | . . . . Highest-Rated Group . | . . . . Highest-Rated Ally . | . . . . Total Orders . | . . . . Ally Attacks . | . . . . Total Damage . | . . . . Kills . | . . . . Allies Corrupted . | . . . . Allies Melted . | . . . . Intel | -11 -10 -10 -10 ------- Run | Yrd Mat Min Sub Robot Analysis Total . | . . . . Derelict Logs Recovered 3 | . . 2 1 Drone Launches . | . . . . Drone Recoveries . | . . . . Exploration | -11 -10 -10 -10 ------------- Run | Yrd Mat Min Sub Turns Passed 714 | 106 197 287 124 Spaces Moved 618 | 71 185 246 116 Core 9 | 9 . . . Treads . | . . . . Legs . | . . . . Wheels 609 | 62 185 246 116 Hover . | . . . . Flight . | . . . . Fastest Speed 50 | 50 80 95 95 Average Speed 90 | 83 81 95 97 Slowest Speed 110 | 90 95 95 110 Overloaded Moves . | . . . . Propulsion Burnouts . | . . . . Robots Hopped . | . . . . Cave-ins Triggered . | . . . . Exploration Rate (%) 28 | 4 37 55 16 Regions Visited 3 Branch Regions 2 Pre-discovered Areas 2 | . . 2 . Known Exits Taken . | . . . . Unknown Exits Taken 3 | 1 1 1 . Scrap Searched 1 | . . 1 . Spaces Dug 1 | . . 1 . Terrain Destroyed 1 | . . 1 . Melee . | . . . . Projectile 1 | . . 1 . AOE . | . . . . Terrain Rammed . | . . . . Walls Destroyed . | . . . . Machines Disabled . | . . . . Actions | -11 -10 -10 -10 --------- Run | Yrd Mat Min Sub Total 722 | 101 209 282 130 Wait 20 | . . 18 2 Move 615 | 70 184 245 116 Hop . | . . . . Pick Up 26 | 13 7 5 1 Fast Attach 3 | 1 1 1 . Attach 8 | 6 . . 2 Detach . | . . . . Swap 4 | 1 2 . 1 Drop 14 | 2 3 4 5 Fire 29 | 8 12 9 . Melee . | . . . . Ram . | . . . . Kick . | . . . . Crush . | . . . . Escape Stasis . | . . . . Rewire . | . . . . Trap 3 | . . . 3 Miscellaneous . | . . . . Route ------- -11/Scrapyard -10/Materials (discovered 2 exits: [*Mat] / *Min) -10/Mines (discovered 3 exits: [*Mat x2] / [*Sub]) -10/Subcaves (discovered 1 exit: Rec) History --------- Turn | Location | Event 6 | -11/Scrapyard | Discovered new exit (range 15) 107 | -11/Scrapyard | Entered Materials 233 | -10/Materials | Discovered new exit (range 15) 267 | -10/Materials | Discovered new exit (range 13) 304 | -10/Materials | Entered Mines 309 | -10/Mines | Build established: Mutant 328 | -10/Mines | Found a hidden stash of uninstalled traps 342 | -10/Mines | Learned location of Storage (-9) 441 | -10/Mines | Discovered new exit (range 14) 529 | -10/Mines | Discovered new exit (range 10) 559 | -10/Mines | Discovered new exit (range 12) 591 | -10/Mines | Entered Subcaves 678 | -10/Subcaves | Identified exit to Recycling 684 | -10/Subcaves | Ambushed by swarm of Subdwellers 711 | -10/Subcaves | Core integrity fell below 50% 715 | -10/Subcaves | Core integrity fell below 20% 715 | -10/Subcaves | Destroyed by S4-K3J(R) with Subdweller Machine Gun Last Messages --------------- A mess of Twisted Machinery falls from the cavern ceiling. KG-82V(R) comes tumbling into view. 00686_ 18-GCU(R) emerges from the Twisted Machinery. 00686_ JT-DOZ(R) emerges from the Twisted Machinery. 00686_ PD-1MO(g): "Sorry we're late! Had another grouchy Sub to deal with. Who's the new fellow?" 00686_ Wheel destroyed. 00692_ CV-MUL(g) destroyed. 00693_ KG-82V(R) suffers critical hit (Burn). 00694_ Dropped EMP Trap. 00695_ Installed EMP Trap. 00697_ Dropped EMP Trap. 00697_ Installed EMP Trap. 00700_ PD-1MO(g) destroyed. 00701_ 0A-V8B(h) destroyed. 00704_ MZ-FSH(g) destroyed. 00707_ Assault Rifle destroyed. 00708_ Ion Engine destroyed. 00709_ Mining Laser destroyed. 00711_ Com. Wheel destroyed. Map ----- +----------------------------------------------------+ | ????# #????????????????????????? | | ????# ###??##??????????????????? | | ????## #?? ##?????????????????? | | ?????# ## #?# ##????????????????? | | ???#?## ##?# ## ###??????????????? | | ??????# #???# ##?????????????? | | ????? ????## ### #?????????????? | | ???? ??????##??## #?????????????? | | ???? ??????#????## #?????????????? | | ????????????????### ## #?????????????? | | ?????????????????# ##?## #?????????????? | | ????????????????## ##### #?????????????? | | ????????????????# ##?????????????? | | ????????????? #?# ##?????#???????? | | ?????????? ### # #?????????????? | | ???????????# ??#### #?????????????? | | ???????????# ?##??# ## #?????????????? | | ????????????#### ##"#?# #??#?????????????? | | ?>??????????###; ""?# ##???????????????? | | ?????###?????# ;[ "?## #???#????????????? | | ????? ###??#";%! "?## #????????????????? | | ?????? ??#" ;## #####????????????? | | ??????? %#?#" ###??#??????????? | | ??????? %?# #?????????????? | | ???????? ## #?????????????? | | ???????? # ##@ #?????????????? | | ?????????? ## " % # ##?????????????? | | ????????#?# # % #??????????????? | | ???????????# # % #??????????????? | | ??????????## # #??????????????? | | ????????### ^ #????????#?????? | | ???????## "" " R #??????????????? | | ??????## " "# #??????????????? | | ?????## %""#R ###?????????#????? | | ?????# " "# ##??#?????????????? | | ???? " #####?????????????????? | | ???? % ######????????????????? | | ????? # #???#????????????? | | ??????# "" "" ""#????????????????? | | ??????# ###""## ""#????????????????? | | ????? ??###?# "##?#??????????????? | | ?????? ???????## ###??????#?????????? | | ???????###?????????# %#??????????????????? | | ???????????????????? ?????#???????????? | | ?????????????????? ? ????????????????? | | ???????????????????? ???????????????? | | ???????????????????? #??????????????? | | ???????????????????? ## ##??????????????? | | ???????????????????? #?####???#???????????? | | ?????????????????????##????????????????????? | +----------------------------------------------------+ Best States ------------- Heat Dissipation 25 Energy Generation 10 Energy Capacity 250 Matter Stores 300 Matter Capacity 300 Sight Range 16 Terrain Scan Range 16 Terrain Scan Density 10 Evasion (%) 44 Item Schematics ----------------- None Robot Schematics ------------------ None Fabricated ------------ Nothing Alien Tech Used ----------------- None Achievements -------------- None Challenges ------------ None Game ------ Seed BombardmentTachyonRay Manual? 0 Play Time 00:10:59 Cumulative 28.4 hours Start 2024.11.01 @ 12:16:30 End 2024.11.01 @ 12:25:16 Sessions 1 Manual Loads 0 Difficulty Rogue Special Mode None Game No. 37 Rogue 37 Adventurer 0 Explorer 0 Win Type - Total 0 Types 0/0/0/0/0/0/0/0/0 Lore% 14 Gallery% 35 Achievement% 31 Wizard Run 0 Options --------- Layout 0 ASCII 0 Keyboard 0 Movement Mouse Keybinds 0 Fullscreen 1 Font 36/Smallcaps Map View 38x25 Zoom Use 100% Tactical HUD 1 Map Filters NONE Filters NONE Steam 1 RUN: 942325de-1836-42fe-9d42-73022e734c5b